[Event "Late-Titled-Tuesday-Blitz-April-16-2024"]
[Site "Chess.com"]
[Date "2024.04.16"]
[Round "8"]
[White "stollenmonster"]
[Black "Harry_Rakkel"]
[Result "1-0"]
[WhiteElo "2891"]
[BlackElo "2715"]
[TimeControl "180+1"]
[EndTime "15:24:16 PDT"]
[Termination "stollenmonster won on time"]

1. e4 {[%clk 0:03:00.9]} 1... c5 {[%clk 0:02:56.7]} 2. Nf3 {[%clk 0:03:00.4]}
2... d6 {[%clk 0:02:56.4]} 3. d4 {[%clk 0:02:59.9]} 3... cxd4 {[%clk 0:02:56.3]}
4. Nxd4 {[%clk 0:03:00.8]} 4... Nf6 {[%clk 0:02:56.1]} 5. Nc3 {[%clk 0:03:01.2]}
5... a6 {[%clk 0:02:56.1]} 6. a4 {[%clk 0:03:00.9]} 6... e6 {[%clk 0:02:53.5]}
7. g3 {[%clk 0:03:00.6]} 7... b6 {[%clk 0:02:51]} 8. Bg2 {[%clk 0:03:00.8]} 8...
Bb7 {[%clk 0:02:50.6]} 9. O-O {[%clk 0:03:01.4]} 9... Qc7 {[%clk 0:02:49.2]} 10.
Re1 {[%clk 0:02:58.9]} 10... Be7 {[%clk 0:02:48.6]} 11. Nb1 {[%clk 0:02:58.3]}
11... O-O {[%clk 0:02:45.3]} 12. b3 {[%clk 0:02:57.5]} 12... Nfd7 {[%clk
0:02:15]} 13. c4 {[%clk 0:02:56.8]} 13... Bf6 {[%clk 0:02:11.8]} 14. Bb2 {[%clk
0:02:55.5]} 14... Rd8 {[%clk 0:02:02.8]} 15. Nd2 {[%clk 0:02:48.7]} 15... Nc5
{[%clk 0:01:58.9]} 16. Qc2 {[%clk 0:02:47.9]} 16... Bxd4 {[%clk 0:01:47.1]} 17.
Bxd4 {[%clk 0:02:47.7]} 17... Nc6 {[%clk 0:01:46.4]} 18. Bc3 {[%clk 0:02:48.1]}
18... e5 {[%clk 0:01:46]} 19. Nf1 {[%clk 0:02:45.9]} 19... Ne6 {[%clk
0:01:45.7]} 20. Ne3 {[%clk 0:02:45.3]} 20... Ncd4 {[%clk 0:01:45]} 21. Qb2
{[%clk 0:02:45.2]} 21... b5 {[%clk 0:01:41.2]} 22. cxb5 {[%clk 0:02:36.5]} 22...
axb5 {[%clk 0:01:40.5]} 23. a5 {[%clk 0:02:37.2]} 23... Rdc8 {[%clk 0:01:34.6]}
24. Rac1 {[%clk 0:02:37.3]} 24... Qc5 {[%clk 0:01:13]} 25. b4 {[%clk 0:02:19.4]}
25... Qa7 {[%clk 0:01:12.1]} 26. Nf5 {[%clk 0:02:19.3]} 26... Nxf5 {[%clk
0:00:56.4]} 27. exf5 {[%clk 0:02:19.4]} 27... Bxg2 {[%clk 0:00:55.9]} 28. Kxg2
{[%clk 0:01:58]} 28... Qb7+ {[%clk 0:00:53.7]} 29. f3 {[%clk 0:01:58.5]} 29...
Ng5 {[%clk 0:00:50.5]} 30. Qe2 {[%clk 0:01:58.9]} 30... e4 {[%clk 0:00:26.7]}
31. fxe4 {[%clk 0:01:54.3]} 31... Rc4 {[%clk 0:00:24.5]} 32. Qg4 {[%clk
0:01:46.6]} 32... f6 {[%clk 0:00:20.5]} 33. Bxf6 {[%clk 0:01:40]} 33... Rxe4
{[%clk 0:00:08.1]} 34. Rxe4 {[%clk 0:01:32.1]} 34... gxf6 {[%clk 0:00:06.5]} 35.
Re1 {[%clk 0:01:09.3]} 35... Kf8 {[%clk 0:00:04.9]} 36. h4 {[%clk 0:01:04.3]}
36... Nxe4 {[%clk 0:00:03.3]} 37. Qxe4 {[%clk 0:01:01.7]} 37... Qxe4+ {[%clk
0:00:01.6]} 38. Rxe4 {[%clk 0:01:02.6]} 38... Rc8 {[%clk 0:00:01.4]} 39. Re6
{[%clk 0:00:59.6]} 1-0

[Event "Late-Titled-Tuesday-Blitz-April-16-2024"]
[Site "Chess.com"]
[Date "2024.04.16"]
[Round "8"]
[White "Veleamater"]
[Black "AlphaGoosee"]
[Result "0-1"]
[WhiteElo "2424"]
[BlackElo "2578"]
[TimeControl "180+1"]
[EndTime "15:24:16 PDT"]
[Termination "AlphaGoosee won by resignation"]

1. g3 {[%clk 0:03:00.9]} 1... d5 {[%clk 0:02:59.9]} 2. Bg2 {[%clk 0:03:01.5]}
2... Nf6 {[%clk 0:03:00.8]} 3. d3 {[%clk 0:03:02]} 3... c6 {[%clk 0:03:01.2]} 4.
Nf3 {[%clk 0:03:02.7]} 4... Bg4 {[%clk 0:03:01.7]} 5. O-O {[%clk 0:03:02.6]}
5... Nbd7 {[%clk 0:03:02.3]} 6. h3 {[%clk 0:03:03]} 6... Bh5 {[%clk 0:03:02.3]}
7. Nc3 {[%clk 0:03:03.1]} 7... e5 {[%clk 0:03:02.6]} 8. e4 {[%clk 0:03:01.1]}
8... Bd6 {[%clk 0:03:02.3]} 9. g4 {[%clk 0:02:57.7]} 9... Bg6 {[%clk 0:03:01.9]}
10. Nh4 {[%clk 0:02:57.8]} 10... d4 {[%clk 0:03:02.2]} 11. Ne2 {[%clk 0:02:57]}
11... O-O {[%clk 0:03:02.5]} 12. Nf5 {[%clk 0:02:56.5]} 12... Bc5 {[%clk
0:02:59.6]} 13. Kh1 {[%clk 0:02:53.7]} 13... Re8 {[%clk 0:02:59.6]} 14. f4
{[%clk 0:02:53.6]} 14... exf4 {[%clk 0:02:59.4]} 15. Bxf4 {[%clk 0:02:52.1]}
15... Ne5 {[%clk 0:02:59.7]} 16. Neg3 {[%clk 0:02:51.4]} 16... Bb6 {[%clk
0:02:54.8]} 17. Bf3 {[%clk 0:02:49.9]} 17... Qd7 {[%clk 0:02:52]} 18. h4 {[%clk
0:02:49.5]} 18... Bxf5 {[%clk 0:02:40.6]} 19. Nxf5 {[%clk 0:02:42.4]} 19... g6
{[%clk 0:02:40.4]} 20. Nh6+ {[%clk 0:02:38.2]} 20... Kg7 {[%clk 0:02:40.8]} 21.
g5 {[%clk 0:02:38.3]} 21... Qh3+ {[%clk 0:02:34]} 22. Kg1 {[%clk 0:02:24.1]}
22... Nfd7 {[%clk 0:02:32.1]} 23. Bg4 {[%clk 0:02:06.6]} 23... Qxh4 {[%clk
0:02:25.5]} 24. Bxd7 {[%clk 0:02:05.2]} 24... Nxd7 {[%clk 0:02:26.4]} 25. Qg4
{[%clk 0:01:47.7]} 25... Qxg4+ {[%clk 0:02:20.4]} 26. Nxg4 {[%clk 0:01:47.5]}
26... Bd8 {[%clk 0:02:20.1]} 27. e5 {[%clk 0:01:45.7]} 27... Nf8 {[%clk
0:02:15.8]} 28. Nf6 {[%clk 0:01:44.5]} 28... Bxf6 {[%clk 0:02:06.5]} 29. gxf6+
{[%clk 0:01:44.4]} 29... Kg8 {[%clk 0:02:06.8]} 30. c3 {[%clk 0:01:41.8]} 30...
Rad8 {[%clk 0:02:03.5]} 31. Rf3 {[%clk 0:01:38.8]} 31... Ne6 {[%clk 0:02:02.6]}
32. Bh6 {[%clk 0:01:34.5]} 32... Nc5 {[%clk 0:01:59.7]} 33. Re1 {[%clk
0:01:29.2]} 33... dxc3 {[%clk 0:01:57.3]} 34. bxc3 {[%clk 0:01:22.9]} 34... Rxd3
{[%clk 0:01:56.4]} 35. Rxd3 {[%clk 0:01:09.1]} 35... Nxd3 {[%clk 0:01:57.3]} 36.
Re3 {[%clk 0:01:08.8]} 36... Nc5 {[%clk 0:01:57.6]} 37. c4 {[%clk 0:00:56.9]}
37... Nd7 {[%clk 0:01:40.9]} 38. Rd3 {[%clk 0:00:57]} 38... Nxe5 {[%clk
0:01:37]} 39. Re3 {[%clk 0:00:56.7]} 39... Re6 {[%clk 0:01:37.3]} 40. Bf4 {[%clk
0:00:56.5]} 40... Ng4 {[%clk 0:01:34.7]} 41. Rd3 {[%clk 0:00:56.3]} 41... Nxf6
{[%clk 0:01:33.7]} 42. Bh6 {[%clk 0:00:52.2]} 42... Re8 {[%clk 0:01:33.3]} 43.
a4 {[%clk 0:00:50.2]} 43... Ng4 {[%clk 0:01:31.9]} 44. Bf4 {[%clk 0:00:49.2]}
44... Ne5 {[%clk 0:01:29]} 45. Re3 {[%clk 0:00:42.8]} 45... f6 {[%clk
0:01:28.9]} 46. Rb3 {[%clk 0:00:40.9]} 46... Re7 {[%clk 0:01:27.6]} 47. c5
{[%clk 0:00:39.2]} 47... g5 {[%clk 0:01:27]} 48. Bg3 {[%clk 0:00:38.9]} 48... h5
{[%clk 0:01:26.5]} 49. a5 {[%clk 0:00:39.1]} 49... h4 {[%clk 0:01:24]} 50. Bxe5
{[%clk 0:00:38.8]} 50... fxe5 {[%clk 0:01:24.9]} 51. Kg2 {[%clk 0:00:37.9]}
51... e4 {[%clk 0:01:22.6]} 52. Kf2 {[%clk 0:00:35.9]} 52... e3+ {[%clk
0:01:21.4]} 53. Ke2 {[%clk 0:00:36.2]} 53... h3 {[%clk 0:01:21.1]} 54. Rb1
{[%clk 0:00:35]} 54... g4 {[%clk 0:01:19.8]} 55. Rg1 {[%clk 0:00:34.5]} 55...
Re4 {[%clk 0:01:18.8]} 56. Rb1 {[%clk 0:00:30.3]} 56... h2 {[%clk 0:01:17.2]}
57. a6 {[%clk 0:00:29]} 57... bxa6 {[%clk 0:01:15.9]} 0-1

[Event "Late-Titled-Tuesday-Blitz-April-16-2024"]
[Site "Chess.com"]
[Date "2024.04.16"]
[Round "8"]
[White "GM_dmitrij"]
[Black "Durarbayli"]
[Result "0-1"]
[WhiteElo "2983"]
[BlackElo "2894"]
[TimeControl "180+1"]
[EndTime "15:24:19 PDT"]
[Termination "Durarbayli won by resignation"]

1. e4 {[%clk 0:03:00.8]} 1... e6 {[%clk 0:02:56.6]} 2. d4 {[%clk 0:02:59.3]}
2... d5 {[%clk 0:02:57.2]} 3. e5 {[%clk 0:02:59.3]} 3... c5 {[%clk 0:02:56.9]}
4. c3 {[%clk 0:02:59.7]} 4... Nc6 {[%clk 0:02:57.3]} 5. Nf3 {[%clk 0:02:58.9]}
5... Bd7 {[%clk 0:02:57.6]} 6. a3 {[%clk 0:02:49.1]} 6... f6 {[%clk 0:02:53.9]}
7. exf6 {[%clk 0:02:39]} 7... Qxf6 {[%clk 0:02:47.2]} 8. Be2 {[%clk 0:02:34.7]}
8... cxd4 {[%clk 0:02:44]} 9. cxd4 {[%clk 0:02:35.6]} 9... Bd6 {[%clk
0:02:43.9]} 10. Nc3 {[%clk 0:02:34.3]} 10... Nge7 {[%clk 0:02:43.4]} 11. O-O
{[%clk 0:02:17.4]} 11... h6 {[%clk 0:02:37.3]} 12. Be3 {[%clk 0:01:53.7]} 12...
Nf5 {[%clk 0:02:33.6]} 13. Qd3 {[%clk 0:01:43.4]} 13... g5 {[%clk 0:02:22.9]}
14. Rad1 {[%clk 0:01:24.8]} 14... g4 {[%clk 0:02:16.4]} 15. Ne1 {[%clk
0:01:22.5]} 15... h5 {[%clk 0:02:04.1]} 16. Nc2 {[%clk 0:01:21.7]} 16... Qh4
{[%clk 0:01:49.1]} 17. g3 {[%clk 0:01:15.4]} 17... Qh3 {[%clk 0:01:48.3]} 18.
Rfe1 {[%clk 0:00:47.6]} 18... Nh4 {[%clk 0:01:45]} 19. Qg6+ {[%clk 0:00:23.9]}
19... Nxg6 {[%clk 0:01:42.2]} 20. Bf1 {[%clk 0:00:24.3]} 20... Nh4 {[%clk
0:01:32.8]} 21. Bxh3 {[%clk 0:00:21.4]} 21... Nf3+ {[%clk 0:01:32.9]} 22. Kg2
{[%clk 0:00:16.1]} 22... Nxe1+ {[%clk 0:01:32.5]} 23. Rxe1 {[%clk 0:00:17]}
23... gxh3+ {[%clk 0:01:33.2]} 24. Kxh3 {[%clk 0:00:17.9]} 24... O-O-O {[%clk
0:01:29.5]} 25. Kg2 {[%clk 0:00:17.5]} 25... h4 {[%clk 0:01:28.9]} 26. f4 {[%clk
0:00:17]} 26... hxg3 {[%clk 0:01:28.7]} 27. hxg3 {[%clk 0:00:17.8]} 27... Rdg8
{[%clk 0:01:29.1]} 28. Re2 {[%clk 0:00:12.2]} 28... Ne7 {[%clk 0:01:29.1]} 29.
Kf3 {[%clk 0:00:11.5]} 29... Nf5 {[%clk 0:01:28.5]} 30. Bf2 {[%clk 0:00:11.8]}
30... Rh3 {[%clk 0:01:20]} 31. Kg2 {[%clk 0:00:09.4]} 31... Rhxg3+ {[%clk
0:01:18.6]} 32. Bxg3 {[%clk 0:00:09.9]} 32... Rxg3+ {[%clk 0:01:16.2]} 33. Kf2
{[%clk 0:00:09.9]} 33... Bxf4 {[%clk 0:01:16.5]} 34. Re1 {[%clk 0:00:06.2]}
34... Rh3 {[%clk 0:01:15]} 35. Rg1 {[%clk 0:00:04.9]} 35... Rh2+ {[%clk
0:01:13.2]} 36. Kf3 {[%clk 0:00:05.8]} 36... Rxc2 {[%clk 0:01:12]} 37. Kxf4
{[%clk 0:00:05.9]} 37... Nxd4 {[%clk 0:01:09]} 38. Rg7 {[%clk 0:00:05.2]} 38...
Ne2+ {[%clk 0:01:00.5]} 39. Ke5 {[%clk 0:00:05.2]} 39... Nxc3 {[%clk 0:01:00.4]}
40. Kd6 {[%clk 0:00:04.9]} 40... Ne4+ {[%clk 0:01:00.5]} 0-1

[Event "Late-Titled-Tuesday-Blitz-April-16-2024"]
[Site "Chess.com"]
[Date "2024.04.16"]
[Round "8"]
[White "ACollins05"]
[Black "manitodeplomo"]
[Result "0-1"]
[WhiteElo "2517"]
[BlackElo "2643"]
[TimeControl "180+1"]
[EndTime "15:24:20 PDT"]
[Termination "manitodeplomo won by checkmate"]

1. Nf3 {[%clk 0:03:00.9]} 1... g6 {[%clk 0:02:58.1]} 2. d4 {[%clk 0:02:58.7]}
2... Bg7 {[%clk 0:02:58.4]} 3. b3 {[%clk 0:02:59.3]} 3... c5 {[%clk 0:02:57.1]}
4. Bb2 {[%clk 0:02:58.9]} 4... cxd4 {[%clk 0:02:57.7]} 5. Bxd4 {[%clk
0:02:55.9]} 5... Nf6 {[%clk 0:02:57.1]} 6. c4 {[%clk 0:02:54.2]} 6... O-O {[%clk
0:02:55.9]} 7. e3 {[%clk 0:02:54.5]} 7... Nc6 {[%clk 0:02:55.7]} 8. Bb2 {[%clk
0:02:54.5]} 8... d5 {[%clk 0:02:55.5]} 9. Nc3 {[%clk 0:02:51.5]} 9... Qa5 {[%clk
0:02:49.7]} 10. Nd2 {[%clk 0:02:34.9]} 10... Rd8 {[%clk 0:02:45.7]} 11. Qc1
{[%clk 0:02:25.5]} 11... d4 {[%clk 0:02:29.4]} 12. exd4 {[%clk 0:02:20.4]} 12...
Nxd4 {[%clk 0:02:29.9]} 13. Bd3 {[%clk 0:02:13.1]} 13... Bf5 {[%clk 0:02:22.7]}
14. Bxf5 {[%clk 0:02:08.4]} 14... Qxf5 {[%clk 0:02:00.1]} 15. O-O {[%clk
0:02:08.1]} 15... Rd7 {[%clk 0:01:41.8]} 16. Rd1 {[%clk 0:02:03.3]} 16... Rad8
{[%clk 0:01:40.8]} 17. Nf1 {[%clk 0:02:03.5]} 17... Ng4 {[%clk 0:01:20.3]} 18.
Rd2 {[%clk 0:01:42.1]} 18... Bh6 {[%clk 0:01:12.3]} 19. Qb1 {[%clk 0:01:34.2]}
19... Bxd2 {[%clk 0:01:03.2]} 20. Qxf5 {[%clk 0:01:31.8]} 20... Nxf5 {[%clk
0:01:02.6]} 21. Nd5 {[%clk 0:01:32.7]} 21... Bg5 {[%clk 0:00:38.2]} 22. h3
{[%clk 0:01:32.6]} 22... Nf6 {[%clk 0:00:37.8]} 23. Nc3 {[%clk 0:01:21.2]} 23...
Bh6 {[%clk 0:00:33]} 24. g4 {[%clk 0:01:20.6]} 24... Nd4 {[%clk 0:00:30.6]} 25.
Ng3 {[%clk 0:01:19.3]} 25... Bf4 {[%clk 0:00:28.3]} 26. Nf1 {[%clk 0:01:17.4]}
26... Be5 {[%clk 0:00:23.5]} 27. Ne3 {[%clk 0:01:16.3]} 27... Ne2+ {[%clk
0:00:18.6]} 28. Nxe2 {[%clk 0:01:16.3]} 28... Bxb2 {[%clk 0:00:18.8]} 29. Rb1
{[%clk 0:01:16.8]} 29... Be5 {[%clk 0:00:17.6]} 30. f4 {[%clk 0:01:15.4]} 30...
Bd6 {[%clk 0:00:17.2]} 31. b4 {[%clk 0:01:14.5]} 31... a5 {[%clk 0:00:15.4]} 32.
c5 {[%clk 0:01:14]} 32... Bc7 {[%clk 0:00:15.3]} 33. a3 {[%clk 0:01:07.6]} 33...
axb4 {[%clk 0:00:15.2]} 34. axb4 {[%clk 0:01:08.5]} 34... Rd2 {[%clk 0:00:14.5]}
35. Kf1 {[%clk 0:01:06.5]} 35... R8d3 {[%clk 0:00:14.5]} 36. Nc4 {[%clk
0:01:06.3]} 36... Rc2 {[%clk 0:00:13.4]} 37. Ne5 {[%clk 0:00:51.8]} 37... Bxe5
{[%clk 0:00:12.4]} 38. fxe5 {[%clk 0:00:52.7]} 38... Nd5 {[%clk 0:00:10.9]} 39.
Ra1 {[%clk 0:00:52.4]} 39... Rf3+ {[%clk 0:00:10.5]} 40. Ke1 {[%clk 0:00:49.8]}
40... Re3 {[%clk 0:00:10.7]} 41. Ra8+ {[%clk 0:00:50]} 41... Kg7 {[%clk
0:00:10.7]} 42. Kd1 {[%clk 0:00:50.9]} 42... Rexe2 {[%clk 0:00:10.1]} 43. h4
{[%clk 0:00:51.8]} 43... Ne3# {[%clk 0:00:09.5]} 0-1

[Event "Late-Titled-Tuesday-Blitz-April-16-2024"]
[Site "Chess.com"]
[Date "2024.04.16"]
[Round "8"]
[White "rhwr"]
[Black "Kimkibo"]
[Result "0-1"]
[WhiteElo "2244"]
[BlackElo "2388"]
[TimeControl "180+1"]
[EndTime "15:24:22 PDT"]
[Termination "Kimkibo won by resignation"]

1. e4 {[%clk 0:03:00.9]} 1... c5 {[%clk 0:02:55.9]} 2. Be2 {[%clk 0:02:59.7]}
2... d6 {[%clk 0:02:50.4]} 3. f4 {[%clk 0:03:00.1]} 3... Nc6 {[%clk 0:02:46.5]}
4. Nf3 {[%clk 0:02:59.6]} 4... g6 {[%clk 0:02:45.6]} 5. O-O {[%clk 0:02:58.2]}
5... Bg7 {[%clk 0:02:45.2]} 6. c3 {[%clk 0:02:58.3]} 6... e6 {[%clk 0:02:42.6]}
7. d3 {[%clk 0:02:51.6]} 7... Nge7 {[%clk 0:02:41.7]} 8. Qe1 {[%clk 0:02:44]}
8... O-O {[%clk 0:02:40.8]} 9. Nbd2 {[%clk 0:02:38.6]} 9... d5 {[%clk
0:02:40.2]} 10. e5 {[%clk 0:02:36.1]} 10... f6 {[%clk 0:02:26.8]} 11. exf6
{[%clk 0:02:13.4]} 11... Rxf6 {[%clk 0:02:26.4]} 12. g3 {[%clk 0:02:05]} 12...
h6 {[%clk 0:02:23.3]} 13. Rf2 {[%clk 0:02:04.8]} 13... Kh7 {[%clk 0:02:20]} 14.
Bf1 {[%clk 0:02:05.2]} 14... b6 {[%clk 0:02:09.9]} 15. Bg2 {[%clk 0:01:50.6]}
15... Bb7 {[%clk 0:02:07.5]} 16. Nf1 {[%clk 0:01:50.1]} 16... Qd6 {[%clk
0:02:01.1]} 17. Ne3 {[%clk 0:01:49.4]} 17... Raf8 {[%clk 0:01:58.8]} 18. Ng4
{[%clk 0:01:48.3]} 18... Rf5 {[%clk 0:01:57.5]} 19. Re2 {[%clk 0:01:36.6]} 19...
Bc8 {[%clk 0:01:45.9]} 20. Bd2 {[%clk 0:01:02.6]} 20... Nd8 {[%clk 0:01:30.5]}
21. Nge5 {[%clk 0:00:49.4]} 21... Nec6 {[%clk 0:01:26.6]} 22. d4 {[%clk
0:00:46.3]} 22... Ba6 {[%clk 0:01:11.1]} 23. Re3 {[%clk 0:00:44]} 23... g5
{[%clk 0:01:04.4]} 24. fxg5 {[%clk 0:00:19.3]} 24... cxd4 {[%clk 0:00:54.4]} 25.
cxd4 {[%clk 0:00:18.5]} 25... Nxd4 {[%clk 0:00:46.4]} 26. Nxd4 {[%clk
0:00:17.6]} 26... Rxe5 {[%clk 0:00:45.7]} 27. Qb1+ {[%clk 0:00:16.2]} 27... Kh8
{[%clk 0:00:44.8]} 28. Qg6 {[%clk 0:00:15]} 28... Rxg5 {[%clk 0:00:42.6]} 29.
Rxe6 {[%clk 0:00:06.5]} 29... Rxg6 {[%clk 0:00:40.6]} 30. Rxd6 {[%clk
0:00:06.4]} 30... Bxd4+ {[%clk 0:00:40.3]} 31. Kh1 {[%clk 0:00:05.9]} 31... Rxd6
{[%clk 0:00:41.2]} 0-1

[Event "Late-Titled-Tuesday-Blitz-April-16-2024"]
[Site "Chess.com"]
[Date "2024.04.16"]
[Round "8"]
[White "HansOnTwitch"]
[Black "dretch"]
[Result "1-0"]
[WhiteElo "3159"]
[BlackElo "2920"]
[TimeControl "180+1"]
[EndTime "15:24:23 PDT"]
[Termination "HansOnTwitch won by resignation"]

1. e4 {[%clk 0:03:00.9]} 1... e6 {[%clk 0:03:00.1]} 2. d4 {[%clk 0:02:58.3]}
2... d5 {[%clk 0:03:00.3]} 3. Nc3 {[%clk 0:02:58.7]} 3... Nf6 {[%clk 0:03:00.4]}
4. e5 {[%clk 0:02:58.7]} 4... Nfd7 {[%clk 0:03:00.9]} 5. f4 {[%clk 0:02:59.5]}
5... c5 {[%clk 0:03:01.3]} 6. Nf3 {[%clk 0:03:00.3]} 6... Nc6 {[%clk 0:03:01.8]}
7. Be3 {[%clk 0:03:01]} 7... cxd4 {[%clk 0:03:02.1]} 8. Nxd4 {[%clk 0:03:01.9]}
8... Bc5 {[%clk 0:03:02.3]} 9. Qd2 {[%clk 0:03:01.2]} 9... O-O {[%clk
0:03:02.1]} 10. O-O-O {[%clk 0:03:00.3]} 10... a6 {[%clk 0:03:02.7]} 11. h4
{[%clk 0:02:58.6]} 11... Nxd4 {[%clk 0:03:01.5]} 12. Bxd4 {[%clk 0:02:59.5]}
12... b5 {[%clk 0:03:02.1]} 13. h5 {[%clk 0:02:55.8]} 13... b4 {[%clk
0:03:00.9]} 14. Ne2 {[%clk 0:02:54.5]} 14... a5 {[%clk 0:03:00.3]} 15. h6 {[%clk
0:02:44.6]} 15... g6 {[%clk 0:02:59.7]} 16. g4 {[%clk 0:02:44]} 16... Qb6 {[%clk
0:02:58.1]} 17. f5 {[%clk 0:02:18.8]} 17... a4 {[%clk 0:02:52.6]} 18. Rh3 {[%clk
0:02:13]} 18... Ba6 {[%clk 0:02:43.9]} 19. Re3 {[%clk 0:01:59.4]} 19... b3
{[%clk 0:02:31.6]} 20. cxb3 {[%clk 0:01:54.9]} 20... Bxe2 {[%clk 0:01:54.2]} 21.
Bxe2 {[%clk 0:01:54.3]} 21... axb3 {[%clk 0:01:46.4]} 22. Rxb3 {[%clk
0:01:53.3]} 22... Bxd4 {[%clk 0:01:45.7]} 23. Rxb6 {[%clk 0:01:49.7]} 23... Bxb6
{[%clk 0:01:43.7]} 24. Kb1 {[%clk 0:01:49.1]} 24... Rfb8 {[%clk 0:01:31.5]} 25.
Bb5 {[%clk 0:01:44.5]} 25... Ba5 {[%clk 0:01:21.6]} 26. Qg5 {[%clk 0:01:29.3]}
26... Bd8 {[%clk 0:00:50.3]} 27. Qf4 {[%clk 0:01:28.4]} 27... g5 {[%clk
0:00:42.3]} 28. Qf1 {[%clk 0:01:27.9]} 28... Nc5 {[%clk 0:00:32.3]} 29. fxe6
{[%clk 0:01:19.2]} 29... fxe6 {[%clk 0:00:25.2]} 30. Qf3 {[%clk 0:01:14.6]}
30... Be7 {[%clk 0:00:18]} 31. Bc6 {[%clk 0:01:12.4]} 31... Rf8 {[%clk
0:00:16.3]} 32. Qg2 {[%clk 0:01:09.2]} 32... Rab8 {[%clk 0:00:07.4]} 33. Rf1
{[%clk 0:01:06.3]} 33... Rb6 {[%clk 0:00:03.3]} 34. Rxf8+ {[%clk 0:01:05.8]}
34... Bxf8 {[%clk 0:00:04.2]} 35. Bxd5 {[%clk 0:01:04.3]} 35... exd5 {[%clk
0:00:05.1]} 36. Qxd5+ {[%clk 0:01:04.7]} 36... Ne6 {[%clk 0:00:03.5]} 37. a4
{[%clk 0:01:04.9]} 37... Be7 {[%clk 0:00:02.2]} 38. a5 {[%clk 0:01:05.1]} 38...
Ra6 {[%clk 0:00:02.2]} 39. Qb5 {[%clk 0:01:01.1]} 39... Ra8 {[%clk 0:00:01.2]}
40. Qc6 {[%clk 0:01:01]} 40... Rxa5 {[%clk 0:00:01.5]} 41. Qxe6+ {[%clk
0:01:01.2]} 41... Kf8 {[%clk 0:00:02.1]} 42. Qf5+ {[%clk 0:00:58.6]} 42... Ke8
{[%clk 0:00:02.3]} 43. Qxh7 {[%clk 0:00:57.8]} 43... Rxe5 {[%clk 0:00:02.3]} 44.
Qh8+ {[%clk 0:00:58.1]} 44... Kf7 {[%clk 0:00:02.9]} 45. Qxe5 {[%clk 0:00:59]}
1-0

[Event "Late-Titled-Tuesday-Blitz-April-16-2024"]
[Site "Chess.com"]
[Date "2024.04.16"]
[Round "8"]
[White "RantomOpening"]
[Black "SRob2003"]
[Result "0-1"]
[WhiteElo "2535"]
[BlackElo "2668"]
[TimeControl "180+1"]
[EndTime "15:24:24 PDT"]
[Termination "SRob2003 won by checkmate"]

1. c4 {[%clk 0:02:59.5]} 1... c5 {[%clk 0:03:00]} 2. Nf3 {[%clk 0:02:59.8]} 2...
Nf6 {[%clk 0:02:58.2]} 3. Nc3 {[%clk 0:03:00.2]} 3... Nc6 {[%clk 0:02:58.3]} 4.
e3 {[%clk 0:03:00.1]} 4... g6 {[%clk 0:02:56.9]} 5. d4 {[%clk 0:02:59.8]} 5...
cxd4 {[%clk 0:02:57.8]} 6. exd4 {[%clk 0:03:00.7]} 6... d5 {[%clk 0:02:58.4]} 7.
cxd5 {[%clk 0:03:01.6]} 7... Nxd5 {[%clk 0:02:59.3]} 8. Qb3 {[%clk 0:03:02.2]}
8... Nxc3 {[%clk 0:02:59.5]} 9. Bc4 {[%clk 0:03:01.9]} 9... Nd5 {[%clk
0:02:59.4]} 10. Bxd5 {[%clk 0:03:01.5]} 10... e6 {[%clk 0:03:00.1]} 11. Bxc6+
{[%clk 0:03:00.9]} 11... bxc6 {[%clk 0:03:01]} 12. O-O {[%clk 0:02:55.5]} 12...
Qd5 {[%clk 0:03:01.6]} 13. Qe3 {[%clk 0:02:41.4]} 13... f6 {[%clk 0:03:00.4]}
14. b3 {[%clk 0:02:41.1]} 14... Bd6 {[%clk 0:02:57.2]} 15. Bb2 {[%clk
0:02:40.6]} 15... g5 {[%clk 0:02:54.4]} 16. Nd2 {[%clk 0:02:40]} 16... O-O
{[%clk 0:02:22.7]} 17. Ne4 {[%clk 0:02:23.7]} 17... Bf4 {[%clk 0:02:22.4]} 18.
Qe2 {[%clk 0:02:22.6]} 18... a5 {[%clk 0:02:18.1]} 19. Nc5 {[%clk 0:02:22.8]}
19... e5 {[%clk 0:02:10.8]} 20. Rad1 {[%clk 0:02:21.5]} 20... a4 {[%clk
0:01:28]} 21. b4 {[%clk 0:02:15.1]} 21... Qxa2 {[%clk 0:01:18.8]} 22. Ra1 {[%clk
0:02:14.6]} 22... Qd5 {[%clk 0:01:15.2]} 23. Nxa4 {[%clk 0:02:11.2]} 23... Ba6
{[%clk 0:01:08.6]} 24. Qc2 {[%clk 0:01:55.9]} 24... Bxf1 {[%clk 0:01:08.9]} 25.
Rxf1 {[%clk 0:01:54.5]} 25... Qb5 {[%clk 0:00:34.9]} 26. Nc3 {[%clk 0:01:53.4]}
26... Qxb4 {[%clk 0:00:35.2]} 27. d5 {[%clk 0:01:43.8]} 27... Rfb8 {[%clk
0:00:32.2]} 28. Ba1 {[%clk 0:01:33.4]} 28... cxd5 {[%clk 0:00:21]} 29. Nxd5
{[%clk 0:01:31.5]} 29... Qd6 {[%clk 0:00:21.4]} 30. Qc4 {[%clk 0:01:27.6]} 30...
Kg7 {[%clk 0:00:19]} 31. g3 {[%clk 0:01:26.6]} 31... Rc8 {[%clk 0:00:16.3]} 32.
Qe4 {[%clk 0:01:26.6]} 32... Rc1 {[%clk 0:00:09.8]} 33. Bb2 {[%clk 0:01:15]}
33... Rxf1+ {[%clk 0:00:09.7]} 34. Kxf1 {[%clk 0:01:15.9]} 34... Rd8 {[%clk
0:00:07.5]} 35. Nc3 {[%clk 0:01:02.9]} 35... Bd2 {[%clk 0:00:06.9]} 36. Ne2
{[%clk 0:00:59.3]} 36... Qd3 {[%clk 0:00:05.9]} 37. Qg4 {[%clk 0:00:48.9]} 37...
Qb1+ {[%clk 0:00:05.3]} 38. Kg2 {[%clk 0:00:49.4]} 38... Qxb2 {[%clk 0:00:05.2]}
39. h4 {[%clk 0:00:50.3]} 39... Qb7+ {[%clk 0:00:05.2]} 40. Kh3 {[%clk
0:00:50.3]} 40... Qh1# {[%clk 0:00:04.9]} 0-1